[Event "Titled Tuesday Blitz February 14 Late 2023"]
[White "Novikov, Evgenij"]
[Black "Bjelobrk, Igor"]
[WhiteFideId "4125380"]
[BlackFideId "4300726"]
[WhiteElo "2276"]
[BlackElo "2403"]
[Result "0-1"]
[Round "11"]
[TimeControl "180+2"]
[Date "2023.02.14"]
[WhiteClock "0:00:05"]
[BlackClock "0:00:09"]

1. e4 {[%clk 0:02:59]}  e6 {[%clk 0:02:59]} 2. Nf3 {[%clk 0:02:56]}  d5 {[%clk 0:02:59]} 3. e5 {[%clk 0:02:57]}  c5 {[%clk 0:02:52]} 4. b4 {[%clk 0:02:57]}  cxb4 {[%clk 0:02:52]} 5. a3 {[%clk 0:02:53]}  d4 {[%clk 0:02:51]} 6. axb4 {[%clk 0:02:42]}  Bxb4 {[%clk 0:02:50]} 7. Ba3 {[%clk 0:02:33]}  Nc6 {[%clk 0:02:41]} 8. Bd3 {[%clk 0:02:25]}  Nge7 {[%clk 0:02:39]} 9. O-O {[%clk 0:02:25]}  O-O {[%clk 0:02:38]} 10. Bxb4 {[%clk 0:01:56]}  Nxb4 {[%clk 0:02:39]} 11. Bxh7+ {[%clk 0:01:57]}  Kxh7 {[%clk 0:02:37]} 12. Ng5+ {[%clk 0:01:57]}  Kh6 {[%clk 0:02:34]} 13. Ra3 {[%clk 0:01:25]}  d3 {[%clk 0:02:32]} 14. Qg4 {[%clk 0:01:17]}  Nf5 {[%clk 0:02:30]} 15. f4 {[%clk 0:00:26]}  Qb6+ {[%clk 0:01:43]} 16. Kh1 {[%clk 0:00:26]}  Kg6 {[%clk 0:01:42]} 17. Nxe6+ {[%clk 0:00:17]}  Kh7 {[%clk 0:01:41]} 18. Nxf8+ {[%clk 0:00:08]}  Kg8 {[%clk 0:01:41]} 19. e6 {[%clk 0:00:04]}  Kxf8 {[%clk 0:01:12]} 20. Qxf5 {[%clk 0:00:04]}  Bxe6 {[%clk 0:01:12]} 21. Qh5 {[%clk 0:00:04]}  Kg8 {[%clk 0:00:40]} 22. cxd3 {[%clk 0:00:04]}  g6 {[%clk 0:00:38]} 23. Qe2 {[%clk 0:00:02]}  Rd8 {[%clk 0:00:31]} 24. Nc3 {[%clk 0:00:02]}  Nc2 {[%clk 0:00:28]} 25. Raa1 {[%clk 0:00:01]}  Nd4 {[%clk 0:00:28]} 26. Qf2 {[%clk 0:00:01]}  a6 {[%clk 0:00:27]} 27. Ne4 {[%clk 0:00:01]}  Kg7 {[%clk 0:00:27]} 28. Rab1 {[%clk 0:00:01]}  Qa7 {[%clk 0:00:25]} 29. Ng3 {[%clk 0:00:02]}  Qb8 {[%clk 0:00:22]} 30. Rb4 {[%clk 0:00:01]}  Nf5 {[%clk 0:00:19]} 31. Re4 {[%clk 0:00:01]}  Qd6 {[%clk 0:00:16]} 32. Nxf5+ {[%clk 0:00:01]}  Bxf5 {[%clk 0:00:16]} 33. Re3 {[%clk 0:00:02]}  Bxd3 {[%clk 0:00:16]} 34. Rfe1 {[%clk 0:00:02]}  b5 {[%clk 0:00:16]} 35. Qg3 {[%clk 0:00:02]}  Bc4 {[%clk 0:00:15]} 36. Re5 {[%clk 0:00:01]}  Qxd2 {[%clk 0:00:15]} 37. h3 {[%clk 0:00:02]}  Qd3 {[%clk 0:00:14]} 38. Qg4 {[%clk 0:00:02]}  Qd7 {[%clk 0:00:12]} 39. f5 {[%clk 0:00:02]}  a5 {[%clk 0:00:08]} 40. Qg5 {[%clk 0:00:02]}  Qd2 {[%clk 0:00:06]} 41. f6+ {[%clk 0:00:01]}  Kh7 {[%clk 0:00:06]} 42. Qh4+ {[%clk 0:00:02]}  Qh6 {[%clk 0:00:05]} 43. Qxh6+ {[%clk 0:00:02]}  Kxh6 {[%clk 0:00:06]} 44. Re7 {[%clk 0:00:03]}  g5 {[%clk 0:00:05]} 45. g4 {[%clk 0:00:02]}  Kg6 {[%clk 0:00:06]} 46. Rc1 {[%clk 0:00:02]}  Kxf6 {[%clk 0:00:05]} 47. Rc7 {[%clk 0:00:02]}  a4 {[%clk 0:00:05]} 48. Rc6+ {[%clk 0:00:01]}  Kg7 {[%clk 0:00:05]} 49. Rc5 {[%clk 0:00:01]}  Rd3 {[%clk 0:00:05]} 50. Rxg5+ {[%clk 0:00:01]}  Kh6 {[%clk 0:00:05]} 51. Rh5+ {[%clk 0:00:01]}  Kg6 {[%clk 0:00:06]} 52. Kh2 {[%clk 0:00:02]}  a3 {[%clk 0:00:06]} 53. Re1 {[%clk 0:00:02]}  a2 {[%clk 0:00:06]} 54. Rf5 {[%clk 0:00:02]}  Rd2+ {[%clk 0:00:06]} 55. Kg3 {[%clk 0:00:03]}  Rb2 {[%clk 0:00:07]} 56. Rfe5 {[%clk 0:00:02]}  Rb1 {[%clk 0:00:07]} 57. h4 {[%clk 0:00:02]}  a1=Q {[%clk 0:00:06]} 58. h5+ {[%clk 0:00:03]}  Kg7 {[%clk 0:00:06]} 59. Rg5+ {[%clk 0:00:02]}  Kh7 {[%clk 0:00:07]} 60. Re8 {[%clk 0:00:02]}  Qc3+ {[%clk 0:00:07]} 61. Kf4 {[%clk 0:00:02]}  Qf6+ {[%clk 0:00:06]} 62. Rf5 {[%clk 0:00:02]}  Rf1+ {[%clk 0:00:06]} 63. Kg3 {[%clk 0:00:02]}  Rxf5 {[%clk 0:00:06]} 64. gxf5 {[%clk 0:00:03]}  Qxf5 {[%clk 0:00:07]} 65. Re3 {[%clk 0:00:03]}  Qg5+ {[%clk 0:00:07]} 66. Kf3 {[%clk 0:00:04]}  Qxh5+ {[%clk 0:00:07]} 67. Kf4 {[%clk 0:00:04]}  Qc5 {[%clk 0:00:08]} 68. Rh3+ {[%clk 0:00:04]}  Kg7 {[%clk 0:00:08]} 69. Rg3+ {[%clk 0:00:05]}  Kf8 {[%clk 0:00:09]} 0-1


[Site "https://www.chess.com"]

[Event "Titled Tuesday Blitz February 14 Late 2023"]
[White "Rodrigues, Tiago Pereira"]
[Black "Sonnenschein, Philipp"]
[WhiteFideId "2101203"]
[BlackFideId "16250877"]
[WhiteElo "2155"]
[BlackElo "2224"]
[Result "1-0"]
[Round "11"]
[TimeControl "180+2"]
[Date "2023.02.14"]
[WhiteClock "0:02:03"]
[BlackClock "0:00:11"]

1. d4 {[%clk 0:03:00]}  Nf6 {[%clk 0:02:59]} 2. Bf4 {[%clk 0:03:00]}  d5 {[%clk 0:02:56]} 3. e3 {[%clk 0:03:00]}  c5 {[%clk 0:02:56]} 4. c3 {[%clk 0:02:59]}  cxd4 {[%clk 0:02:54]} 5. exd4 {[%clk 0:02:58]}  Nc6 {[%clk 0:02:54]} 6. h3 {[%clk 0:02:58]}  Bf5 {[%clk 0:02:50]} 7. Qb3 {[%clk 0:02:58]}  Qc8 {[%clk 0:02:32]} 8. Nd2 {[%clk 0:02:56]}  e6 {[%clk 0:02:33]} 9. a4 {[%clk 0:02:54]}  Be7 {[%clk 0:02:33]} 10. Ngf3 {[%clk 0:02:55]}  O-O {[%clk 0:02:33]} 11. Bb5 {[%clk 0:02:54]}  Na5 {[%clk 0:02:20]} 12. Qa2 {[%clk 0:02:45]}  a6 {[%clk 0:02:20]} 13. Be2 {[%clk 0:02:45]}  Ne4 {[%clk 0:02:13]} 14. O-O {[%clk 0:02:44]}  Bd6 {[%clk 0:02:01]} 15. Bxd6 {[%clk 0:02:44]}  Nxd6 {[%clk 0:02:01]} 16. Ne5 {[%clk 0:02:44]}  f6 {[%clk 0:01:59]} 17. Nef3 {[%clk 0:02:43]}  b5 {[%clk 0:01:45]} 18. b4 {[%clk 0:02:36]}  Nac4 {[%clk 0:01:44]} 19. Nb3 {[%clk 0:02:36]}  Ne4 {[%clk 0:01:32]} 20. Rfc1 {[%clk 0:02:33]}  Qb7 {[%clk 0:01:02]} 21. Nh4 {[%clk 0:02:31]}  Bg6 {[%clk 0:00:57]} 22. f3 {[%clk 0:02:30]}  Ned6 {[%clk 0:00:52]} 23. Nc5 {[%clk 0:02:30]}  Qe7 {[%clk 0:00:44]} 24. Nxg6 {[%clk 0:02:30]}  hxg6 {[%clk 0:00:44]} 25. Qc2 {[%clk 0:02:29]}  Nf5 {[%clk 0:00:35]} 26. Bd3 {[%clk 0:02:25]}  Nfe3 {[%clk 0:00:33]} 27. Qe2 {[%clk 0:02:22]}  f5 {[%clk 0:00:33]} 28. Bxc4 {[%clk 0:02:21]}  Nxc4 {[%clk 0:00:32]} 29. Qxe6+ {[%clk 0:02:16]}  Qxe6 {[%clk 0:00:32]} 30. Nxe6 {[%clk 0:02:17]}  Rfe8 {[%clk 0:00:23]} 31. Nf4 {[%clk 0:02:17]}  Nb6 {[%clk 0:00:13]} 32. axb5 {[%clk 0:02:11]}  axb5 {[%clk 0:00:12]} 33. Nxg6 {[%clk 0:02:10]}  Re3 {[%clk 0:00:10]} 34. Rxa8+ {[%clk 0:02:06]}  Nxa8 {[%clk 0:00:11]} 35. Kf2 {[%clk 0:02:04]}  Rd3 {[%clk 0:00:11]} 36. Ke2 {[%clk 0:02:03]} 1-0


[Site "https://www.chess.com"]

[Event "Titled Tuesday Blitz February 14 Late 2023"]
[White "Pasti, Aron"]
[Black "Papasimakopoulos, Alexandros"]
[WhiteFideId "785857"]
[BlackFideId "4244125"]
[WhiteElo "2361"]
[BlackElo "2401"]
[Result "1-0"]
[Round "11"]
[TimeControl "180+2"]
[Date "2023.02.14"]
[WhiteClock "0:01:24"]
[BlackClock "0:01:30"]

1. e4 {[%clk 0:02:54]}  c5 {[%clk 0:03:00]} 2. Nf3 {[%clk 0:02:49]}  Nc6 {[%clk 0:02:59]} 3. d4 {[%clk 0:02:49]}  cxd4 {[%clk 0:03:00]} 4. Nxd4 {[%clk 0:02:50]}  e5 {[%clk 0:02:59]} 5. Nb5 {[%clk 0:02:50]}  d6 {[%clk 0:02:51]} 6. c4 {[%clk 0:02:50]}  a6 {[%clk 0:02:52]} 7. N5c3 {[%clk 0:02:50]}  Be6 {[%clk 0:02:50]} 8. Bd3 {[%clk 0:02:47]}  Be7 {[%clk 0:02:49]} 9. O-O {[%clk 0:02:47]}  Bg5 {[%clk 0:02:45]} 10. Bxg5 {[%clk 0:02:48]}  Qxg5 {[%clk 0:02:45]} 11. Nd5 {[%clk 0:02:49]}  Qd8 {[%clk 0:02:37]} 12. Nbc3 {[%clk 0:02:37]}  Nf6 {[%clk 0:02:34]} 13. Nxf6+ {[%clk 0:02:37]}  Qxf6 {[%clk 0:02:34]} 14. Nd5 {[%clk 0:02:37]}  Qd8 {[%clk 0:02:34]} 15. f4 {[%clk 0:02:34]}  Bxd5 {[%clk 0:02:26]} 16. exd5 {[%clk 0:02:34]}  Nd4 {[%clk 0:02:26]} 17. fxe5 {[%clk 0:02:34]}  dxe5 {[%clk 0:02:27]} 18. Qh5 {[%clk 0:02:33]}  Qe7 {[%clk 0:01:55]} 19. Rae1 {[%clk 0:02:31]}  g6 {[%clk 0:01:56]} 20. Qxe5 {[%clk 0:02:16]}  Qxe5 {[%clk 0:01:56]} 21. Rxe5+ {[%clk 0:02:17]}  Kf8 {[%clk 0:01:57]} 22. Rf4 {[%clk 0:02:13]}  Nf5 {[%clk 0:01:54]} 23. Bxf5 {[%clk 0:02:13]}  gxf5 {[%clk 0:01:55]} 24. Rexf5 {[%clk 0:02:14]}  Kg7 {[%clk 0:01:50]} 25. Rxf7+ {[%clk 0:02:15]}  Kg6 {[%clk 0:01:51]} 26. Rxb7 {[%clk 0:02:15]}  Rhc8 {[%clk 0:01:51]} 27. b3 {[%clk 0:02:15]}  a5 {[%clk 0:01:52]} 28. Rg4+ {[%clk 0:02:13]}  Kf5 {[%clk 0:01:50]} 29. h3 {[%clk 0:02:08]}  a4 {[%clk 0:01:50]} 30. Rxh7 {[%clk 0:01:55]}  axb3 {[%clk 0:01:51]} 31. axb3 {[%clk 0:01:56]}  Ra3 {[%clk 0:01:51]} 32. Rf7+ {[%clk 0:01:53]}  Ke5 {[%clk 0:01:51]} 33. Rf3 {[%clk 0:01:53]}  Rb8 {[%clk 0:01:49]} 34. Rgg3 {[%clk 0:01:52]}  Ra1+ {[%clk 0:01:46]} 35. Kh2 {[%clk 0:01:52]}  Rb1 {[%clk 0:01:47]} 36. h4 {[%clk 0:01:51]}  Rh8 {[%clk 0:01:46]} 37. Rg5+ {[%clk 0:01:50]}  Ke4 {[%clk 0:01:45]} 38. h5 {[%clk 0:01:50]}  Rh6 {[%clk 0:01:39]} 39. Rh3 {[%clk 0:01:49]}  Rf6 {[%clk 0:01:33]} 40. h6 {[%clk 0:01:47]}  Rff1 {[%clk 0:01:34]} 41. h7 {[%clk 0:01:34]}  Kf4 {[%clk 0:01:33]} 42. Rf5+ {[%clk 0:01:26]}  Kxf5 {[%clk 0:01:34]} 43. h8=Q {[%clk 0:01:26]}  Kf4 {[%clk 0:01:33]} 44. Qf6+ {[%clk 0:01:25]}  Ke4 {[%clk 0:01:31]} 45. Qe6+ {[%clk 0:01:24]}  Kd4 {[%clk 0:01:30]} 46. Qe3# {[%clk 0:01:24]} 1-0


[Site "https://www.chess.com"]

[Event "Titled Tuesday Blitz February 14 Late 2023"]
[White "Rios Escobar, Adan"]
[Black "Brilej, Jaka"]
[WhiteFideId "3403645"]
[BlackFideId "14618818"]
[WhiteElo "2234"]
[BlackElo "2321"]
[Result "0-1"]
[Round "11"]
[TimeControl "180+2"]
[Date "2023.02.14"]
[WhiteClock "0:00:05"]
[BlackClock "0:00:03"]

1. d4 {[%clk 0:02:31]}  d5 {[%clk 0:02:58]} 2. g3 {[%clk 0:02:30]}  g6 {[%clk 0:02:55]} 3. Nf3 {[%clk 0:02:30]}  Bg7 {[%clk 0:02:55]} 4. Bg2 {[%clk 0:02:31]}  c6 {[%clk 0:02:54]} 5. c4 {[%clk 0:02:31]}  dxc4 {[%clk 0:02:54]} 6. O-O {[%clk 0:02:30]}  Nf6 {[%clk 0:02:54]} 7. a4 {[%clk 0:02:31]}  Ne4 {[%clk 0:02:53]} 8. Qc2 {[%clk 0:02:30]}  Nd6 {[%clk 0:02:52]} 9. Nbd2 {[%clk 0:02:26]}  Bf5 {[%clk 0:02:52]} 10. e4 {[%clk 0:02:26]}  Be6 {[%clk 0:02:47]} 11. Ng5 {[%clk 0:02:25]}  Bc8 {[%clk 0:02:41]} 12. e5 {[%clk 0:02:15]}  Nf5 {[%clk 0:02:39]} 13. Qxc4 {[%clk 0:02:14]}  O-O {[%clk 0:02:39]} 14. e6 {[%clk 0:02:09]}  f6 {[%clk 0:02:24]} 15. Nf7 {[%clk 0:02:08]}  Qxd4 {[%clk 0:02:22]} 16. Qb3 {[%clk 0:02:02]}  Na6 {[%clk 0:02:18]} 17. Nf3 {[%clk 0:02:00]}  Qb4 {[%clk 0:02:12]} 18. Qa2 {[%clk 0:01:55]}  Nc5 {[%clk 0:02:12]} 19. Bd2 {[%clk 0:01:53]}  Qb3 {[%clk 0:02:11]} 20. g4 {[%clk 0:01:46]}  Qxa2 {[%clk 0:02:03]} 21. Rxa2 {[%clk 0:01:43]}  Bxe6 {[%clk 0:02:03]} 22. Ra3 {[%clk 0:01:39]}  Nd6 {[%clk 0:01:58]} 23. Nxd6 {[%clk 0:01:28]}  exd6 {[%clk 0:01:59]} 24. h3 {[%clk 0:01:25]}  f5 {[%clk 0:01:58]} 25. Ng5 {[%clk 0:01:23]}  Bxb2 {[%clk 0:01:42]} 26. Re3 {[%clk 0:01:19]}  Bc4 {[%clk 0:01:32]} 27. Rb1 {[%clk 0:01:18]}  Bf6 {[%clk 0:01:29]} 28. Ree1 {[%clk 0:01:08]}  Bd3 {[%clk 0:01:15]} 29. Rb4 {[%clk 0:01:05]}  a5 {[%clk 0:01:10]} 30. Rb6 {[%clk 0:01:05]}  Bd4 {[%clk 0:00:50]} 31. Re7 {[%clk 0:00:55]}  Bf6 {[%clk 0:00:49]} 32. Rexb7 {[%clk 0:00:50]}  Nxb7 {[%clk 0:00:48]} 33. Rxb7 {[%clk 0:00:51]}  Rab8 {[%clk 0:00:44]} 34. Bxc6 {[%clk 0:00:43]}  Rxb7 {[%clk 0:00:44]} 35. Bxb7 {[%clk 0:00:43]}  Bxg5 {[%clk 0:00:41]} 36. Bxg5 {[%clk 0:00:43]}  Bc4 {[%clk 0:00:37]} 37. Bc6 {[%clk 0:00:35]}  d5 {[%clk 0:00:32]} 38. Bd2 {[%clk 0:00:33]}  Rc8 {[%clk 0:00:26]} 39. Bd7 {[%clk 0:00:32]}  Rc7 {[%clk 0:00:26]} 40. Be6+ {[%clk 0:00:32]}  Kg7 {[%clk 0:00:25]} 41. gxf5 {[%clk 0:00:32]}  gxf5 {[%clk 0:00:25]} 42. Bxf5 {[%clk 0:00:32]}  Ra7 {[%clk 0:00:22]} 43. Bc3+ {[%clk 0:00:28]}  Kf7 {[%clk 0:00:21]} 44. Bd4 {[%clk 0:00:29]}  Ra6 {[%clk 0:00:19]} 45. Bxh7 {[%clk 0:00:28]}  Bb3 {[%clk 0:00:20]} 46. Bd3 {[%clk 0:00:26]}  Re6 {[%clk 0:00:16]} 47. Bb5 {[%clk 0:00:24]}  Re4 {[%clk 0:00:15]} 48. Bc3 {[%clk 0:00:22]}  Bxa4 {[%clk 0:00:15]} 49. Bd3 {[%clk 0:00:18]}  Rh4 {[%clk 0:00:14]} 50. Bf1 {[%clk 0:00:12]}  Bd7 {[%clk 0:00:13]} 51. Bxa5 {[%clk 0:00:10]}  Bxh3 {[%clk 0:00:13]} 52. Be2 {[%clk 0:00:09]}  Be6 {[%clk 0:00:11]} 53. Bc7 {[%clk 0:00:09]}  d4 {[%clk 0:00:10]} 54. Bg3 {[%clk 0:00:08]}  Rh8 {[%clk 0:00:09]} 55. Be5 {[%clk 0:00:08]}  Rd8 {[%clk 0:00:08]} 56. Bd3 {[%clk 0:00:05]}  Rd7 {[%clk 0:00:03]} 57. f4 {[%clk 0:00:05]}  Bg4 {[%clk 0:00:02]} 58. Kf2 {[%clk 0:00:05]}  Ke6 {[%clk 0:00:02]} 59. Kg3 {[%clk 0:00:06]}  Bf5 {[%clk 0:00:03]} 60. Bc4+ {[%clk 0:00:05]}  Ke7 {[%clk 0:00:03]} 0-1


[Site "https://www.chess.com"]

[Event "Titled Tuesday Blitz February 14 Late 2023"]
[White "Mikhalsky, Vladimir"]
[Black "Alex_Sahakyan2006"]
[WhiteFideId "14144352"]
[WhiteElo "2219"]
[BlackElo "2696"]
[Result "1-0"]
[Round "11"]
[TimeControl "180+2"]
[Date "2023.02.14"]
[WhiteClock "0:02:22"]
[BlackClock "0:02:57"]

1. d4 {[%clk 0:03:00]}  Nf6 {[%clk 0:02:59]} 2. c4 {[%clk 0:03:00]}  c5 {[%clk 0:03:00]} 3. d5 {[%clk 0:02:57]}  b5 {[%clk 0:02:59]} 4. cxb5 {[%clk 0:02:58]}  a6 {[%clk 0:03:00]} 5. b6 {[%clk 0:02:58]}  d6 {[%clk 0:03:00]} 6. Nc3 {[%clk 0:02:56]}  Nbd7 {[%clk 0:03:00]} 7. Nf3 {[%clk 0:02:53]}  g6 {[%clk 0:03:00]} 8. e4 {[%clk 0:02:52]}  Bg7 {[%clk 0:03:00]} 9. Bd3 {[%clk 0:02:50]}  O-O {[%clk 0:03:00]} 10. O-O {[%clk 0:02:49]}  Qxb6 {[%clk 0:03:01]} 11. h3 {[%clk 0:02:48]}  a5 {[%clk 0:03:01]} 12. Na4 {[%clk 0:02:43]}  Qc7 {[%clk 0:02:59]} 13. Bd2 {[%clk 0:02:38]}  Ba6 {[%clk 0:02:58]} 14. Bc3 {[%clk 0:02:36]}  Rfb8 {[%clk 0:02:56]} 15. Re1 {[%clk 0:02:32]}  Bxd3 {[%clk 0:02:55]} 16. Qxd3 {[%clk 0:02:31]}  Ne8 {[%clk 0:02:56]} 17. Bxg7 {[%clk 0:02:25]}  Kxg7 {[%clk 0:02:57]} 18. Qc3+ {[%clk 0:02:22]} 1-0


[Site "https://www.chess.com"]

[Event "Titled Tuesday Blitz February 14 Late 2023"]
[White "Delorme, Axel"]
[Black "Cruz, Jonathan"]
[WhiteFideId "632023"]
[BlackFideId "3802124"]
[WhiteElo "2483"]
[BlackElo "2328"]
[Result "0-1"]
[Round "11"]
[TimeControl "180+2"]
[Date "2023.02.14"]
[WhiteClock "0:00:20"]
[BlackClock "0:01:08"]

1. e4 {[%clk 0:03:00]}  e5 {[%clk 0:02:56]} 2. Nf3 {[%clk 0:03:00]}  Nc6 {[%clk 0:02:56]} 3. Bb5 {[%clk 0:03:00]}  a6 {[%clk 0:02:55]} 4. Ba4 {[%clk 0:02:59]}  Nf6 {[%clk 0:02:55]} 5. O-O {[%clk 0:02:59]}  b5 {[%clk 0:02:52]} 6. Bb3 {[%clk 0:02:59]}  d6 {[%clk 0:02:53]} 7. c3 {[%clk 0:02:50]}  Be7 {[%clk 0:02:53]} 8. Re1 {[%clk 0:02:44]}  O-O {[%clk 0:02:53]} 9. h3 {[%clk 0:02:44]}  Nb8 {[%clk 0:02:44]} 10. d4 {[%clk 0:02:44]}  Nbd7 {[%clk 0:02:44]} 11. c4 {[%clk 0:02:44]}  Bb7 {[%clk 0:02:35]} 12. Nc3 {[%clk 0:02:39]}  c6 {[%clk 0:02:34]} 13. a3 {[%clk 0:02:39]}  Rc8 {[%clk 0:02:32]} 14. Be3 {[%clk 0:02:30]}  exd4 {[%clk 0:02:20]} 15. Nxd4 {[%clk 0:02:26]}  Ne5 {[%clk 0:02:19]} 16. cxb5 {[%clk 0:02:22]}  axb5 {[%clk 0:02:19]} 17. f4 {[%clk 0:02:07]}  Nc4 {[%clk 0:02:18]} 18. Bf2 {[%clk 0:02:08]}  Nxb2 {[%clk 0:02:16]} 19. Qc2 {[%clk 0:02:08]}  Nc4 {[%clk 0:02:15]} 20. a4 {[%clk 0:02:09]}  Na5 {[%clk 0:01:59]} 21. axb5 {[%clk 0:02:04]}  Nxb3 {[%clk 0:01:58]} 22. Qxb3 {[%clk 0:02:03]}  cxb5 {[%clk 0:01:51]} 23. Ndxb5 {[%clk 0:02:04]}  d5 {[%clk 0:01:46]} 24. exd5 {[%clk 0:01:46]}  Bxd5 {[%clk 0:01:42]} 25. Nxd5 {[%clk 0:01:44]}  Qxd5 {[%clk 0:01:41]} 26. Qxd5 {[%clk 0:01:36]}  Nxd5 {[%clk 0:01:42]} 27. Rad1 {[%clk 0:01:34]}  Rcd8 {[%clk 0:01:29]} 28. Nd4 {[%clk 0:01:22]}  Bb4 {[%clk 0:01:25]} 29. Nc6 {[%clk 0:00:33]}  Bxe1 {[%clk 0:01:20]} 30. Nxd8 {[%clk 0:00:27]}  Bxf2+ {[%clk 0:01:20]} 31. Kxf2 {[%clk 0:00:27]}  Rxd8 {[%clk 0:01:20]} 32. Kf3 {[%clk 0:00:25]}  Rd7 {[%clk 0:01:14]} 33. g4 {[%clk 0:00:23]}  Nf6 {[%clk 0:01:14]} 34. Rc1 {[%clk 0:00:23]}  h6 {[%clk 0:01:11]} 35. g5 {[%clk 0:00:23]}  hxg5 {[%clk 0:01:08]} 36. fxg5 {[%clk 0:00:23]}  Nh5 {[%clk 0:01:08]} 37. Kg4 {[%clk 0:00:20]}  g6 {[%clk 0:01:08]} 0-1


[Site "https://www.chess.com"]

[Event "Titled Tuesday Blitz February 14 Late 2023"]
[White "Poliakova, Varvara"]
[Black "Haszon, David"]
[WhiteFideId "13518313"]
[BlackFideId "733610"]
[WhiteElo "2010"]
[BlackElo "2264"]
[Result "1-0"]
[Round "11"]
[TimeControl "180+2"]
[Date "2023.02.14"]
[WhiteClock "0:01:30"]
[BlackClock "0:00:58"]

1. e4 {[%clk 0:02:52]}  e5 {[%clk 0:03:00]} 2. Nf3 {[%clk 0:02:51]}  Nc6 {[%clk 0:03:00]} 3. Bc4 {[%clk 0:02:48]}  Bc5 {[%clk 0:02:59]} 4. d4 {[%clk 0:02:44]}  Bxd4 {[%clk 0:02:58]} 5. Nxd4 {[%clk 0:02:42]}  Nxd4 {[%clk 0:02:50]} 6. O-O {[%clk 0:02:41]}  Nf6 {[%clk 0:02:49]} 7. Bg5 {[%clk 0:02:38]}  h6 {[%clk 0:02:46]} 8. f4 {[%clk 0:02:35]}  d6 {[%clk 0:02:38]} 9. Bxf6 {[%clk 0:02:31]}  Qxf6 {[%clk 0:02:23]} 10. fxe5 {[%clk 0:02:28]}  Qxe5 {[%clk 0:02:24]} 11. Bxf7+ {[%clk 0:02:26]}  Ke7 {[%clk 0:02:22]} 12. c3 {[%clk 0:02:25]}  Ne6 {[%clk 0:02:19]} 13. Bg6 {[%clk 0:02:23]}  Rf8 {[%clk 0:02:13]} 14. Bf5 {[%clk 0:02:20]}  Ng5 {[%clk 0:02:05]} 15. Nd2 {[%clk 0:02:17]}  Qc5+ {[%clk 0:01:56]} 16. Kh1 {[%clk 0:02:16]}  Bxf5 {[%clk 0:01:56]} 17. exf5 {[%clk 0:02:13]}  Rxf5 {[%clk 0:01:56]} 18. Rxf5 {[%clk 0:02:09]}  Qxf5 {[%clk 0:01:57]} 19. Qb3 {[%clk 0:02:06]}  b6 {[%clk 0:01:43]} 20. Re1+ {[%clk 0:02:00]}  Kd7 {[%clk 0:01:43]} 21. Rf1 {[%clk 0:01:59]}  Qe6 {[%clk 0:01:39]} 22. Qa4+ {[%clk 0:01:57]}  c6 {[%clk 0:01:36]} 23. Qa6 {[%clk 0:01:52]}  Kc7 {[%clk 0:01:31]} 24. b4 {[%clk 0:01:49]}  Qc8 {[%clk 0:01:25]} 25. Qe2 {[%clk 0:01:44]}  Qe6 {[%clk 0:01:23]} 26. Qxe6 {[%clk 0:01:37]}  Nxe6 {[%clk 0:01:23]} 27. Rf7+ {[%clk 0:01:38]}  Kd8 {[%clk 0:01:20]} 28. Nc4 {[%clk 0:01:36]}  d5 {[%clk 0:01:13]} 29. Ne5 {[%clk 0:01:34]}  Rc8 {[%clk 0:01:00]} 30. Rxa7 {[%clk 0:01:32]}  c5 {[%clk 0:00:58]} 31. Nf7+ {[%clk 0:01:30]} 1-0


[Site "https://www.chess.com"]

[Event "Titled Tuesday Blitz February 14 Late 2023"]
[White "Koellner, Ruben Gideon"]
[Black "Fan_Of_Chucky"]
[WhiteFideId "12993093"]
[WhiteElo "2426"]
[BlackElo "2398"]
[Result "0-1"]
[Round "11"]
[TimeControl "180+2"]
[Date "2023.02.14"]
[WhiteClock "0:00:02"]
[BlackClock "0:00:09"]

1. d4 {[%clk 0:03:00]}  Nf6 {[%clk 0:02:58]} 2. Nf3 {[%clk 0:02:59]}  c5 {[%clk 0:02:54]} 3. e3 {[%clk 0:02:59]}  cxd4 {[%clk 0:02:50]} 4. exd4 {[%clk 0:03:00]}  g6 {[%clk 0:02:48]} 5. Nbd2 {[%clk 0:02:59]}  Bg7 {[%clk 0:02:47]} 6. c3 {[%clk 0:02:59]}  O-O {[%clk 0:02:46]} 7. Bd3 {[%clk 0:03:00]}  d5 {[%clk 0:02:45]} 8. O-O {[%clk 0:03:00]}  Nc6 {[%clk 0:02:39]} 9. Re1 {[%clk 0:03:00]}  Nd7 {[%clk 0:02:35]} 10. Nf1 {[%clk 0:02:57]}  e5 {[%clk 0:02:35]} 11. dxe5 {[%clk 0:02:57]}  Ndxe5 {[%clk 0:02:30]} 12. Nxe5 {[%clk 0:02:58]}  Nxe5 {[%clk 0:02:29]} 13. Be2 {[%clk 0:02:56]}  Nc6 {[%clk 0:02:21]} 14. Be3 {[%clk 0:02:53]}  d4 {[%clk 0:02:18]} 15. cxd4 {[%clk 0:02:53]}  Nxd4 {[%clk 0:02:19]} 16. Bc4 {[%clk 0:02:50]}  b6 {[%clk 0:02:10]} 17. Rc1 {[%clk 0:02:46]}  Bb7 {[%clk 0:02:10]} 18. Qg4 {[%clk 0:02:37]}  Nf5 {[%clk 0:02:04]} 19. Bg5 {[%clk 0:02:32]}  Qd4 {[%clk 0:02:01]} 20. Qxd4 {[%clk 0:02:30]}  Nxd4 {[%clk 0:02:01]} 21. Re7 {[%clk 0:02:27]}  Bc6 {[%clk 0:01:59]} 22. Be3 {[%clk 0:02:16]}  Nf5 {[%clk 0:01:56]} 23. Rc7 {[%clk 0:02:15]}  Be4 {[%clk 0:01:39]} 24. b3 {[%clk 0:02:06]}  Be5 {[%clk 0:01:33]} 25. Rd7 {[%clk 0:02:03]}  Nd6 {[%clk 0:01:33]} 26. Re7 {[%clk 0:01:54]}  Bb2 {[%clk 0:01:28]} 27. Rd1 {[%clk 0:01:43]}  Nxc4 {[%clk 0:01:28]} 28. Rxe4 {[%clk 0:01:42]}  Nxe3 {[%clk 0:01:23]} 29. Nxe3 {[%clk 0:01:43]}  Rfd8 {[%clk 0:01:16]} 30. Rxd8+ {[%clk 0:01:42]}  Rxd8 {[%clk 0:01:17]} 31. g4 {[%clk 0:01:41]}  Kg7 {[%clk 0:01:12]} 32. Re7 {[%clk 0:01:41]}  a5 {[%clk 0:01:08]} 33. Rb7 {[%clk 0:01:39]}  Bd4 {[%clk 0:01:05]} 34. Nc4 {[%clk 0:01:39]}  Bc5 {[%clk 0:01:03]} 35. g5 {[%clk 0:01:12]}  Rd5 {[%clk 0:00:59]} 36. h4 {[%clk 0:01:10]}  Rf5 {[%clk 0:00:58]} 37. Nxb6 {[%clk 0:01:09]}  Bxf2+ {[%clk 0:00:55]} 38. Kg2 {[%clk 0:01:06]}  Bxh4 {[%clk 0:00:55]} 39. Nc4 {[%clk 0:01:03]}  Bxg5 {[%clk 0:00:53]} 40. Ra7 {[%clk 0:01:02]}  Bd8 {[%clk 0:00:48]} 41. Ra8 {[%clk 0:01:01]}  Rd5 {[%clk 0:00:44]} 42. Kf3 {[%clk 0:00:59]}  h5 {[%clk 0:00:42]} 43. Ke4 {[%clk 0:00:58]}  Rd1 {[%clk 0:00:40]} 44. Nxa5 {[%clk 0:00:56]}  Bxa5 {[%clk 0:00:33]} 45. Rxa5 {[%clk 0:00:57]}  Rf1 {[%clk 0:00:29]} 46. b4 {[%clk 0:00:56]}  h4 {[%clk 0:00:28]} 47. Ra3 {[%clk 0:00:51]}  g5 {[%clk 0:00:26]} 48. Rf3 {[%clk 0:00:40]}  f5+ {[%clk 0:00:23]} 49. Ke3 {[%clk 0:00:38]}  f4+ {[%clk 0:00:21]} 50. Ke4 {[%clk 0:00:32]}  Rxf3 {[%clk 0:00:22]} 51. Kxf3 {[%clk 0:00:32]}  Kf6 {[%clk 0:00:18]} 52. b5 {[%clk 0:00:27]}  Ke6 {[%clk 0:00:17]} 53. Kg4 {[%clk 0:00:08]}  Kd6 {[%clk 0:00:16]} 54. a4 {[%clk 0:00:08]}  Kc5 {[%clk 0:00:15]} 55. Kf3 {[%clk 0:00:04]}  h3 {[%clk 0:00:12]} 56. Kf2 {[%clk 0:00:01]}  g4 {[%clk 0:00:12]} 57. Kg1 {[%clk 0:00:02]}  f3 {[%clk 0:00:09]} 0-1


[Site "https://www.chess.com"]